[Event "Schack-SM 2023: Sverigemastarklassen"]
[Site "Helsingborg Arena, Mellersta Stenbocksgatan 14, Helsingborg, Sweden"]
[Date "2023.07.09"]
[Round "9.1"]
[White "Seo, Jung Min"]
[Black "Hillarp Persson, Tiger"]
[Result "0-1"]
[TimeControl "90 minutes for 40 moves + 30 minutes for the rest of the game + 30 seconds per move from move one."]
[WhiteTitle "IM"]
[BlackTitle "GM"]
[WhiteFideId "1734687"]
[BlackFideId "1700812"]
[WhiteElo "2469"]
[BlackElo "2493"]

1. e4 {[%clk 01:30:38]} {[%emt 00:00:22]} c5 {[%clk 01:30:54]} {[%emt
00:00:06]} 2. Nf3 {[%clk 01:30:59]} {[%emt 00:00:09]} d6 {[%clk 01:31:18]}
{[%emt 00:00:06]} 3. d4 {[%clk 01:31:27]} {[%emt 00:00:03]} cxd4 {[%clk
01:31:42]} {[%emt 00:00:06]} 4. Nxd4 {[%clk 01:31:56]} Nf6 {[%clk 01:32:01]}
{[%emt 00:00:11]} 5. Nc3 {[%clk 01:32:25]} {[%emt 00:00:01]} a6 {[%clk
01:32:16]} {[%emt 00:00:14]} 6. h3 {[%clk 01:32:46]} {[%emt 00:00:08]} e6
{[%clk 01:31:12]} {[%emt 00:01:34]} 7. g4 {[%clk 01:33:03]} {[%emt 00:00:13]}
h6 {[%clk 01:31:35]} {[%emt 00:00:07]} 8. Bg2 {[%clk 01:33:07]} {[%emt
00:00:26]} Be7 {[%clk 01:24:57]} {[%emt 00:07:08]} 9. Be3 {[%clk 01:33:15]}
{[%emt 00:00:21]} Nc6 {[%clk 01:25:10]} {[%emt 00:00:17]} 10. f4 {[%clk
01:31:45]} {[%emt 00:01:59]} Qc7 {[%clk 01:25:11]} {[%emt 00:00:28]} 11. Qd3
{[%clk 01:11:01]} {[%emt 00:21:14]} Nxd4 {[%clk 00:52:56]} {[%emt 00:32:46]} 12.
Qxd4 {[%clk 01:08:21]} {[%emt 00:03:10]} e5 {[%clk 00:52:02]} {[%emt 00:01:24]}
13. Qd2 {[%clk 00:58:27]} {[%emt 00:10:24]} b5 {[%clk 00:43:57]} {[%emt
00:08:35]} 14. O-O-O {[%clk 00:56:43]} {[%emt 00:02:14]} b4 {[%clk 00:26:05]}
{[%emt 00:18:22]} 15. Ne2 {[%clk 00:47:14]} {[%emt 00:09:58]} a5 {[%clk
00:22:38]} {[%emt 00:03:57]} 16. Kb1 {[%clk 00:44:15]} {[%emt 00:03:30]} O-O
{[%clk 00:13:44]} {[%emt 00:09:25]} 17. Ng3 {[%clk 00:41:45]} {[%emt 00:02:59]}
a4 {[%clk 00:12:45]} {[%emt 00:01:29]} 18. Nf5 {[%clk 00:29:22]} {[%emt
00:12:52]} Bxf5 {[%clk 00:13:02]} {[%emt 00:00:13]} 19. exf5 {[%clk 00:29:40]}
{[%emt 00:00:13]} b3 {[%clk 00:13:21]} {[%emt 00:00:11]} 20. cxb3 {[%clk
00:19:32]} {[%emt 00:10:38]} axb3 {[%clk 00:11:25]} {[%emt 00:02:26]} 21. Rc1
{[%clk 00:11:50]} {[%emt 00:08:11]} Qb8 {[%clk 00:08:40]} {[%emt 00:03:14]} 22.
a3 {[%clk 00:12:03]} {[%emt 00:00:18]} d5 {[%clk 00:06:38]} {[%emt 00:02:32]}
23. fxe5 {[%clk 00:09:48]} {[%emt 00:02:45]} Qxe5 {[%clk 00:06:35]} {[%emt
00:00:33]} 24. Qd4 {[%clk 00:07:08]} {[%emt 00:03:11]} Qb8 {[%clk 00:06:45]}
{[%emt 00:00:19]} 25. Rc6 {[%clk 00:05:03]} {[%emt 00:02:34]} Re8 {[%clk
00:02:45]} {[%emt 00:04:30]} 26. Rg1 {[%clk 00:00:57]} {[%emt 00:04:37]} Qb5
{[%clk 00:01:41]} {[%emt 00:01:34]} 27. Rb6 {[%clk 00:01:05]} {[%emt 00:00:22]}
Qe2 {[%clk 00:01:44]} {[%emt 00:00:26]} 28. Rxb3 {[%clk 00:01:30]} {[%emt
00:00:06]} Rab8 {[%clk 00:00:51]} {[%emt 00:01:23]} 29. Rxb8 {[%clk 00:00:35]}
{[%emt 00:01:26]} Rxb8 {[%clk 00:01:15]} {[%emt 00:00:06]} 30. Bf4 {[%clk
00:00:41]} {[%emt 00:00:24]} Bc5 {[%clk 00:01:06]} {[%emt 00:00:39]} 31. Qd2
{[%clk 00:00:51]} {[%emt 00:00:20]} Qxd2 {[%clk 00:01:28]} {[%emt 00:00:08]}
0-1

[Event "Schack-SM 2023: Junior-SM"]
[Site "Helsingborg Arena, Mellersta Stenbocksgatan 14, Helsingborg, Sweden"]
[Date "2023.07.09"]
[Round "9.3"]
[White "Carlsson, Ludvig"]
[Black "Strom-Engdahl, Alexander"]
[Result "1-0"]
[TimeControl "90 minutes for 40 moves + 30 minutes for the rest of the game + 30 seconds per move from move one."]
[WhiteTitle "IM"]
[WhiteElo "2373"]
[BlackElo "2120"]

1. d4 {[%clk 01:30:56]} {[%emt 00:00:04]} Nf6 {[%clk 01:30:55]} {[%emt
00:00:05]} 2. c4 {[%clk 01:31:20]} {[%emt 00:00:06]} e6 {[%clk 01:31:22]}
{[%emt 00:00:04]} 3. g3 {[%clk 01:31:44]} {[%emt 00:00:06]} d5 {[%clk
01:31:21]} {[%emt 00:00:30]} 4. Bg2 {[%clk 01:32:02]} {[%emt 00:00:12]} dxc4
{[%clk 01:31:45]} {[%emt 00:00:07]} 5. Nf3 {[%clk 01:32:27]} {[%emt 00:00:04]}
c5 {[%clk 01:32:09]} {[%emt 00:00:07]} 6. O-O {[%clk 01:32:51]} {[%emt
00:00:05]} Nc6 {[%clk 01:32:36]} {[%emt 00:00:03]} 7. dxc5 {[%clk 01:33:15]}
{[%emt 00:00:06]} Qxd1 {[%clk 01:33:00]} {[%emt 00:00:06]} 8. Rxd1 {[%clk
01:33:41]} {[%emt 00:00:04]} Bxc5 {[%clk 01:33:22]} {[%emt 00:00:09]} 9. Nbd2
{[%clk 01:34:07]} {[%emt 00:00:03]} c3 {[%clk 01:33:45]} {[%emt 00:00:07]} 10.
bxc3 {[%clk 01:34:33]} {[%emt 00:00:04]} O-O {[%clk 01:34:10]} {[%emt
00:00:06]} 11. Nb3 {[%clk 01:34:57]} {[%emt 00:00:05]} Be7 {[%clk 01:34:36]}
{[%emt 00:00:05]} 12. Nfd4 {[%clk 01:35:22]} {[%emt 00:00:06]} Bd7 {[%clk
01:34:59]} {[%emt 00:00:07]} 13. Nb5 {[%clk 01:35:37]} {[%emt 00:00:14]} Rfd8
{[%clk 01:32:19]} {[%emt 00:03:11]} 14. Be3 {[%clk 01:35:59]} {[%emt 00:00:08]}
Be8 {[%clk 01:21:31]} {[%emt 00:11:19]} 15. Rxd8 {[%clk 01:32:16]} {[%emt
00:04:12]} Bxd8 {[%clk 01:18:12]} {[%emt 00:03:49]} 16. Nd6 {[%clk 01:31:57]}
{[%emt 00:00:48]} Bb6 {[%clk 01:11:34]} {[%emt 00:07:08]} 17. Bxb6 {[%clk
01:29:31]} {[%emt 00:02:56]} axb6 {[%clk 01:11:55]} {[%emt 00:00:09]} 18. Nxb7
{[%clk 01:29:55]} {[%emt 00:00:06]} Ra3 {[%clk 01:04:50]} {[%emt 00:07:36]} 19.
Nd6 {[%clk 01:29:24]} {[%emt 00:01:00]} Na5 {[%clk 01:04:05]} {[%emt 00:01:15]}
20. Nxa5 {[%clk 01:26:04]} {[%emt 00:03:50]} Rxa5 {[%clk 01:04:20]} {[%emt
00:00:15]} 21. Nc4 {[%clk 01:07:17]} {[%emt 00:19:16]} Ra6 {[%clk 01:01:00]}
{[%emt 00:03:51]} 22. Bb7 {[%clk 01:04:40]} {[%emt 00:03:06]} Ra7 {[%clk
01:01:15]} {[%emt 00:00:16]} 23. Bf3 {[%clk 01:05:04]} {[%emt 00:00:06]} Ra6
{[%clk 00:50:22]} {[%emt 00:11:24]} 24. Nd6 {[%clk 01:02:54]} {[%emt 00:02:40]}
b5 {[%clk 00:45:17]} {[%emt 00:05:36]} 25. Nxe8 {[%clk 01:02:06]} {[%emt
00:01:17]} Nxe8 {[%clk 00:45:41]} {[%emt 00:00:06]} 26. Rb1 {[%clk 01:01:44]}
{[%emt 00:00:52]} Nd6 {[%clk 00:45:29]} {[%emt 00:00:41]} 27. c4 {[%clk
01:01:59]} {[%emt 00:00:15]} Nxc4 {[%clk 00:44:06]} {[%emt 00:01:54]} 28. Rxb5
{[%emt 00:00:17]} g6 {[%clk 00:42:25]} {[%emt 00:02:05]} 29. Rb8+ {[%clk
01:01:17]} {[%emt 00:01:31]} Kg7 {[%clk 00:42:49]} {[%emt 00:00:05]} 30. Ra8
{[%clk 01:01:42]} {[%emt 00:00:05]} Rb6 {[%clk 00:40:48]} {[%emt 00:02:31]} 31.
a4 {[%clk 01:00:42]} {[%emt 00:01:29]} Nd2 {[%clk 00:37:02]} {[%emt 00:04:16]}
32. Kg2 {[%clk 00:57:40]} {[%emt 00:03:32]} Rb3 {[%clk 00:29:49]} {[%emt
00:07:44]} 33. Bc6 {[%clk 00:56:42]} {[%emt 00:01:28]} Rb6 {[%clk 00:29:59]}
{[%emt 00:00:20]} 34. Be8 {[%clk 00:50:30]} {[%emt 00:06:41]} Ne4 {[%clk
00:29:43]} {[%emt 00:00:46]} 35. Bb5 {[%clk 00:48:49]} {[%emt 00:02:11]} Nc3
{[%clk 00:23:50]} {[%emt 00:06:23]} 36. Bd3 {[%clk 00:46:36]} {[%emt 00:02:43]}
e5 {[%clk 00:22:09]} {[%emt 00:02:12]} 37. a5 {[%clk 00:46:19]} {[%emt
00:00:46]} Rb2 {[%clk 00:21:48]} {[%emt 00:00:51]} 38. Rc8 {[%clk 00:45:20]}
{[%emt 00:01:29]} Nd5 {[%clk 00:15:06]} {[%emt 00:07:12]} 39. a6 {[%clk
00:42:18]} {[%emt 00:03:32]} Ra2 {[%clk 00:15:13]} {[%emt 00:00:23]} 40. Bc4
{[%clk 00:42:00]} {[%emt 00:00:47]} Nb6 {[%clk 00:15:42]} {[%emt 00:00:02]} 41.
Bxa2 {[%clk 00:42:20]} {[%emt 00:00:09]} Nxc8 {[%clk 00:16:07]} {[%emt
00:00:05]} 42. Kf3 {[%clk 00:42:26]} {[%emt 00:00:24]} f5 {[%clk 00:15:52]}
{[%emt 00:00:45]} 43. Be6 {[%clk 00:42:10]} {[%emt 00:00:46]} Na7 {[%clk
00:16:04]} {[%emt 00:00:20]} 44. e4 {[%clk 00:41:58]} {[%emt 00:00:42]} Kf6
{[%clk 00:16:27]} {[%emt 00:00:07]} 45. exf5 {[%clk 00:42:22]} {[%emt
00:00:06]} gxf5 {[%clk 00:16:51]} {[%emt 00:00:06]} 46. Bd7 {[%clk 00:42:46]}
{[%emt 00:00:05]} 1-0

[Event "Schack-SM 2023: Mastarklassen"]
[Site "Helsingborg Arena, Mellersta Stenbocksgatan 14, Helsingborg, Sweden"]
[Date "2023.07.09"]
[Round "9.6"]
[White "Troberg Eskola, Love"]
[Black "Mashhadi, Peyman"]
[Result "0-1"]
[TimeControl "90 minutes for 40 moves + 30 minutes for the rest of games + 30 seconds per move from move one."]
[WhiteElo "2038"]
[BlackElo "2117"]

1. Nf3 {[%clk 01:30:57]} {[%emt 00:00:02]} Nf6 {[%clk 01:30:33]} {[%emt
00:00:26]} 2. c4 {[%clk 01:31:22]} {[%emt 00:00:06]} g6 {[%clk 01:30:46]}
{[%emt 00:00:15]} 3. Nc3 {[%clk 01:31:45]} {[%emt 00:00:09]} Bg7 {[%clk
01:31:07]} {[%emt 00:00:08]} 4. e4 {[%clk 01:32:10]} {[%emt 00:00:07]} d6
{[%clk 01:31:15]} {[%emt 00:00:20]} 5. d4 {[%clk 01:32:34]} {[%emt 00:00:08]}
O-O {[%clk 01:31:29]} {[%emt 00:00:13]} 6. Be2 {[%clk 01:32:59]} {[%emt
00:00:06]} Na6 {[%clk 01:31:20]} {[%emt 00:00:39]} 7. O-O {[%clk 01:33:04]}
{[%emt 00:00:26]} e5 {[%clk 01:31:35]} {[%emt 00:00:14]} 8. Be3 {[%clk
01:32:50]} {[%emt 00:00:45]} Ng4 {[%clk 01:28:17]} {[%emt 00:03:47]} 9. Bg5
{[%clk 01:33:13]} {[%emt 00:00:07]} f6 {[%clk 01:28:13]} {[%emt 00:00:35]} 10.
Bc1 {[%clk 01:32:31]} {[%emt 00:01:13]} Nh6 {[%clk 01:25:38]} {[%emt 00:03:04]}
11. Re1 {[%clk 01:29:21]} {[%emt 00:03:40]} c6 {[%clk 01:18:58]} {[%emt
00:07:10]} 12. h3 {[%clk 01:27:54]} {[%emt 00:01:58]} g5 {[%clk 01:14:10]}
{[%emt 00:05:17]} 13. dxe5 {[%clk 01:22:16]} {[%emt 00:06:08]} dxe5 {[%clk
01:14:22]} {[%emt 00:00:16]} 14. Rb1 {[%clk 01:11:21]} {[%emt 00:11:27]} Qe7
{[%clk 01:11:21]} {[%emt 00:03:29]} 15. Nd2 {[%clk 01:08:24]} {[%emt 00:03:28]}
Be6 {[%clk 01:06:55]} {[%emt 00:04:56]} 16. a3 {[%clk 01:07:07]} {[%emt
00:01:49]} Rad8 {[%clk 01:00:39]} {[%emt 00:06:44]} 17. Qc2 {[%clk 00:54:50]}
{[%emt 00:12:47]} Nc7 {[%clk 00:50:59]} {[%emt 00:10:09]} 18. b4 {[%clk
00:52:31]} {[%emt 00:02:51]} Bc8 {[%clk 00:48:52]} {[%emt 00:02:36]} 19. c5
{[%clk 00:50:51]} {[%emt 00:02:11]} Ne6 {[%clk 00:48:18]} {[%emt 00:01:03]} 20.
Nc4 {[%clk 00:40:53]} {[%emt 00:10:29]} Nd4 {[%clk 00:46:35]} {[%emt 00:02:13]}
21. Qa4 {[%clk 00:31:24]} {[%emt 00:09:59]} Be6 {[%clk 00:44:10]} {[%emt
00:02:54]} 22. Na5 {[%clk 00:27:14]} {[%emt 00:04:42]} g4 {[%clk 00:34:50]}
{[%emt 00:09:49]} 23. hxg4 {[%clk 00:24:48]} {[%emt 00:02:56]} Nxg4 {[%clk
00:30:17]} {[%emt 00:05:03]} 24. f3 {[%clk 00:24:32]} {[%emt 00:00:46]} Nh6
{[%clk 00:29:30]} {[%emt 00:01:16]} 25. Bc4 {[%clk 00:19:07]} {[%emt 00:05:56]}
Bxc4 {[%clk 00:24:19]} {[%emt 00:05:40]} 26. Nxc4 {[%clk 00:19:32]} {[%emt
00:00:06]} Qf7 {[%clk 00:24:30]} {[%emt 00:00:19]} 27. Nd6 {[%clk 00:16:59]}
{[%emt 00:03:03]} Qg6 {[%clk 00:22:58]} {[%emt 00:02:02]} 28. Kf2 {[%clk
00:15:23]} {[%emt 00:02:06]} f5 {[%clk 00:20:58]} {[%emt 00:02:29]} 29. Bxh6
{[%clk 00:09:34]} {[%emt 00:06:20]} Qxh6 {[%clk 00:17:37]} {[%emt 00:03:50]} 30.
Qd1 {[%clk 00:04:49]} {[%emt 00:05:16]} fxe4 {[%clk 00:09:37]} {[%emt
00:08:29]} 31. Ncxe4 {[%clk 00:03:25]} {[%emt 00:01:55]} Qh4+ {[%clk 00:06:48]}
{[%emt 00:03:19]} 32. Ke3 {[%clk 00:03:22]} {[%emt 00:00:33]} Qh6+ {[%clk
00:05:18]} {[%emt 00:01:59]} 33. Kd3 {[%clk 00:03:22]} {[%emt 00:00:31]} Qe6
{[%clk 00:05:28]} {[%emt 00:00:20]} 34. Rb2 {[%clk 00:02:47]} {[%emt 00:01:05]}
a5 {[%clk 00:04:59]} {[%emt 00:00:59]} 35. bxa5 {[%clk 00:02:29]} {[%emt
00:00:49]} Qd5 {[%clk 00:04:36]} {[%emt 00:00:52]} 36. Ke3 {[%clk 00:01:49]}
{[%emt 00:01:10]} Rd7 {[%clk 00:01:51]} {[%emt 00:03:15]} 37. Qb1 {[%clk
00:01:46]} {[%emt 00:00:33]} Kh8 {[%clk 00:00:48]} {[%emt 00:01:33]} 38. Rxb7
{[%clk 00:00:56]} {[%emt 00:01:20]} Rxb7 {[%clk 00:00:59]} {[%emt 00:00:18]} 39.
Nxb7 {[%clk 00:00:43]} {[%emt 00:00:44]} Nf5+ {[%clk 00:00:54]} {[%emt
00:00:35]} 40. Ke2 {[%clk 00:00:34]} {[%emt 00:00:39]} Qc4+ {[%clk 00:00:39]}
{[%emt 00:00:44]} 41. Kf2 {[%clk 00:24:12]} {[%emt 00:06:53]} Qd4+ {[%clk
00:26:40]} {[%emt 00:04:28]} 42. Kf1 {[%clk 00:22:26]} {[%emt 00:02:18]} Ne3+
{[%clk 00:22:55]} {[%emt 00:04:14]} 43. Rxe3 {[%clk 00:20:32]} {[%emt
00:02:24]} Qxe3 {[%clk 00:23:00]} {[%emt 00:00:25]} 44. a6 {[%clk 00:14:32]}
{[%emt 00:06:31]} Qxa3 {[%clk 00:22:25]} {[%emt 00:01:03]} 45. Qb6 {[%clk
00:14:35]} {[%emt 00:00:28]} Qa1+ {[%clk 00:18:32]} {[%emt 00:04:23]} 46. Kf2
{[%clk 00:13:06]} {[%emt 00:02:00]} Qd4+ {[%clk 00:16:55]} {[%emt 00:02:06]} 47.
Ke2 {[%clk 00:13:14]} {[%emt 00:00:22]} Qc4+ {[%clk 00:15:37]} {[%emt
00:01:48]} 48. Ke1 {[%clk 00:13:21]} {[%emt 00:00:23]} Qc1+ {[%clk 00:09:42]}
{[%emt 00:06:25]} 49. Kf2 {[%clk 00:11:35]} {[%emt 00:02:16]} Bh6 {[%clk
00:08:41]} {[%emt 00:01:30]} 50. Qxc6 {[%clk 00:11:29]} {[%emt 00:00:37]} Be3+
{[%clk 00:07:50]} {[%emt 00:01:21]} 51. Ke2 {[%clk 00:11:23]} {[%emt 00:00:36]}
Bd4 {[%clk 00:07:21]} {[%emt 00:00:58]} 52. Qd6 {[%clk 00:10:34]} {[%emt
00:01:19]} Qe3+ {[%clk 00:07:34]} {[%emt 00:00:18]} 53. Kd1 {[%clk 00:09:26]}
{[%emt 00:01:38]} Qg1+ {[%clk 00:07:29]} {[%emt 00:00:34]} 54. Kc2 {[%clk
00:09:52]} {[%emt 00:00:05]} Qxg2+ {[%clk 00:07:47]} {[%emt 00:00:12]} 55. Nd2
{[%clk 00:10:09]} {[%emt 00:00:13]} Rxf3 {[%clk 00:06:04]} {[%emt 00:02:13]} 56.
Qd8+ {[%clk 00:05:50]} {[%emt 00:04:50]} Kg7 {[%clk 00:06:22]} {[%emt
00:00:10]} 57. Qd7+ {[%clk 00:04:26]} {[%emt 00:01:55]} Rf7 {[%clk 00:06:26]}
{[%emt 00:00:25]} 58. Qe8 {[%clk 00:03:44]} {[%emt 00:01:12]} Qg6+ {[%clk
00:06:24]} {[%emt 00:00:33]} 59. Kc1 {[%clk 00:03:42]} {[%emt 00:00:33]} Rf1+
{[%clk 00:05:58]} {[%emt 00:00:55]} 0-1

[Event "Schack-SM 2023: Veteran-SM 65+"]
[Site "Helsingborg Arena, Mellersta Stenbocksgatan 14, Helsingborg, Sweden"]
[Date "2023.07.08"]
[Round "8.4"]
[White "Hedin, Gunnar"]
[Black "Holst, Conny"]
[Result "1/2-1/2"]
[TimeControl "90 minutes for 40 moves + 30 minutes for the rest of games + 30 seconds per move from move one."]
[BlackTitle "FM"]
[WhiteElo "2093"]
[BlackElo "2156"]

1. d4 {[%clk 01:30:56]} {[%emt 00:00:03]} Nf6 {[%clk 01:30:50]} {[%emt
00:00:10]} 2. c4 {[%clk 01:31:16]} {[%emt 00:00:10]} e6 {[%clk 01:30:23]}
{[%emt 00:00:56]} 3. Nc3 {[%clk 01:31:31]} {[%emt 00:00:16]} Bb4 {[%clk
01:30:45]} {[%emt 00:00:08]} 4. e3 {[%clk 01:27:16]} {[%emt 00:04:45]} b6
{[%clk 01:29:05]} {[%emt 00:02:11]} 5. Nge2 {[%clk 01:26:26]} {[%emt 00:01:19]}
Ne4 {[%clk 01:26:09]} {[%emt 00:03:25]} 6. f3 {[%clk 01:24:50]} {[%emt
00:02:07]} Nxc3 {[%clk 01:19:31]} {[%emt 00:07:08]} 7. bxc3 {[%clk 01:24:57]}
{[%emt 00:00:23]} Bd6 {[%clk 01:18:05]} {[%emt 00:01:56]} 8. e4 {[%clk
01:19:05]} {[%emt 00:06:22]} c5 {[%clk 01:13:36]} {[%emt 00:04:59]} 9. Be3
{[%clk 01:17:55]} {[%emt 00:01:40]} Nc6 {[%clk 01:08:35]} {[%emt 00:05:31]} 10.
Ng3 {[%clk 01:11:47]} {[%emt 00:06:38]} cxd4 {[%clk 01:01:56]} {[%emt
00:07:10]} 11. cxd4 {[%clk 01:07:41]} {[%emt 00:04:36]} Na5 {[%clk 00:54:29]}
{[%emt 00:07:56]} 12. Qa4 {[%clk 01:00:17]} {[%emt 00:07:54]} Ba6 {[%clk
00:50:11]} {[%emt 00:04:48]} 13. c5 {[%clk 00:51:46]} {[%emt 00:09:01]} Bxf1
{[%clk 00:49:40]} {[%emt 00:01:01]} 14. Kxf1 {[%clk 00:51:47]} {[%emt
00:00:29]} bxc5 {[%clk 00:48:22]} {[%emt 00:01:48]} 15. dxc5 {[%clk 00:52:06]}
{[%emt 00:00:11]} Bxg3 {[%clk 00:44:03]} {[%emt 00:04:49]} 16. hxg3 {[%clk
00:52:11]} {[%emt 00:00:25]} Nc6 {[%clk 00:44:12]} {[%emt 00:00:21]} 17. Kf2
{[%clk 00:46:39]} {[%emt 00:06:03]} Qf6 {[%clk 00:41:21]} {[%emt 00:03:20]} 18.
Rad1 {[%clk 00:45:08]} {[%emt 00:02:01]} Rb8 {[%clk 00:35:58]} {[%emt
00:05:53]} 19. Rd2 {[%clk 00:38:57]} {[%emt 00:06:41]} Rb2 {[%clk 00:33:54]}
{[%emt 00:02:33]} 20. Rhd1 {[%clk 00:39:01]} {[%emt 00:00:27]} O-O {[%clk
00:33:34]} {[%emt 00:00:50]} 21. Rxb2 {[%clk 00:38:21]} {[%emt 00:01:10]} Qxb2+
{[%clk 00:31:18]} {[%emt 00:02:46]} 22. Rd2 {[%clk 00:38:48]} {[%emt 00:00:02]}
Qb7 {[%clk 00:24:30]} {[%emt 00:07:19]} 23. Bf4 {[%clk 00:29:57]} {[%emt
00:09:21]} e5 {[%clk 00:24:07]} {[%emt 00:00:53]} 24. Be3 {[%clk 00:29:29]}
{[%emt 00:00:58]} h6 {[%clk 00:22:39]} {[%emt 00:01:57]} 25. g4 {[%clk
00:29:19]} {[%emt 00:00:40]} Rc8 {[%clk 00:21:11]} {[%emt 00:01:58]} 26. Qc4
{[%clk 00:21:48]} {[%emt 00:08:02]} Rc7 {[%clk 00:18:34]} {[%emt 00:03:07]} 27.
Qc3 {[%clk 00:19:59]} {[%emt 00:02:19]} Qb4 {[%clk 00:17:24]} {[%emt 00:01:40]}
28. Qxb4 {[%clk 00:19:47]} {[%emt 00:00:43]} Nxb4 {[%clk 00:17:47]} {[%emt
00:00:07]} 29. a3 {[%clk 00:19:40]} {[%emt 00:00:37]} Nc6 {[%clk 00:17:38]}
{[%emt 00:00:38]} 30. Rb2 {[%clk 00:17:52]} {[%emt 00:02:12]} Kf8 {[%clk
00:15:14]} {[%emt 00:02:59]} 31. g3 {[%clk 00:14:31]} {[%emt 00:03:51]} Ke7
{[%clk 00:14:54]} {[%emt 00:00:51]} 32. f4 {[%clk 00:14:03]} {[%emt 00:00:58]}
Rc8 {[%clk 00:12:33]} {[%emt 00:02:51]} 33. Ke2 {[%clk 00:13:21]} {[%emt
00:01:12]} Kd8 {[%clk 00:06:25]} {[%emt 00:06:38]} 34. Rb7 {[%clk 00:12:46]}
{[%emt 00:01:05]} Rb8 {[%clk 00:06:27]} {[%emt 00:00:28]} 35. Rxb8+ {[%clk
00:13:04]} {[%emt 00:00:12]} Nxb8 {[%clk 00:06:49]} {[%emt 00:00:07]} 36. Kd3
{[%clk 00:06:21]} {[%emt 00:07:14]} Kc7 {[%clk 00:06:18]} {[%emt 00:01:01]} 37.
Kc4 {[%clk 00:06:15]} {[%emt 00:00:36]} Kc6 {[%clk 00:06:38]} {[%emt 00:00:10]}
38. g5 {[%clk 00:03:24]} {[%emt 00:03:21]} h5 {[%clk 00:04:45]} {[%emt
00:02:22]} 39. f5 {[%clk 00:03:35]} {[%emt 00:00:20]} g6 {[%clk 00:04:39]}
{[%emt 00:00:36]} 40. Bf2 {[%clk 00:02:59]} {[%emt 00:01:06]} Na6 {[%clk
00:03:41]} {[%emt 00:01:28]} 41. Be3 {[%clk 00:02:38]} {[%emt 00:00:51]} Nc7
{[%clk 00:26:52]} {[%emt 00:07:18]} 42. Bc1 {[%clk 00:17:45]} {[%emt 00:15:23]}
Ne8 {[%clk 00:19:59]} {[%emt 00:07:24]} 43. Bb2 {[%clk 00:15:09]} {[%emt
00:03:07]} d6 {[%clk 00:18:36]} {[%emt 00:01:52]} 44. Bc3 {[%clk 00:10:04]}
{[%emt 00:05:35]} a6 {[%clk 00:15:50]} {[%emt 00:03:16]} 45. fxg6 {[%clk
00:07:27]} {[%emt 00:03:07]} fxg6 {[%clk 00:16:08]} {[%emt 00:00:11]} 46. cxd6
{[%clk 00:07:22]} {[%emt 00:00:35]} Nxd6+ {[%clk 00:14:31]} {[%emt 00:02:08]}
47. Kd3 {[%clk 00:07:44]} {[%emt 00:00:07]} Nf7 {[%clk 00:13:22]} {[%emt
00:01:39]} 48. Bd2 {[%clk 00:02:31]} {[%emt 00:05:44]} Kb5 {[%clk 00:10:23]}
{[%emt 00:03:29]} 49. Bc1 {[%clk 00:02:35]} {[%emt 00:00:26]} a5 {[%clk
00:09:01]} {[%emt 00:01:51]} 50. Bd2 {[%clk 00:02:51]} {[%emt 00:00:15]} Nd8
{[%clk 00:06:55]} {[%emt 00:02:36]} 51. Kc3 {[%clk 00:01:03]} {[%emt 00:02:18]}
Ne6 {[%clk 00:05:49]} {[%emt 00:01:36]} 52. Be3 {[%clk 00:01:11]} {[%emt
00:00:22]} a4 {[%clk 00:03:16]} {[%emt 00:03:04]} 53. Kd3 {[%clk 00:01:16]}
{[%emt 00:00:24]} Nf8 {[%clk 00:03:12]} {[%emt 00:00:34]} 54. Bd2 {[%clk
00:00:44]} {[%emt 00:01:02]} Nd7 {[%clk 00:02:51]} {[%emt 00:00:51]} 55. Be3
{[%clk 00:01:11]} {[%emt 00:00:03]} Nb8 {[%clk 00:02:35]} {[%emt 00:00:46]} 56.
Bd2 {[%clk 00:01:08]} {[%emt 00:00:32]} Nc6 {[%clk 00:02:48]} {[%emt 00:00:17]}
57. Be3 {[%clk 00:00:58]} {[%emt 00:00:40]} Na5 {[%clk 00:02:06]} {[%emt
00:01:12]} 58. Bd2 {[%clk 00:01:15]} {[%emt 00:00:14]} Nc4 {[%clk 00:01:52]}
{[%emt 00:00:43]} 59. Bb4 {[%clk 00:01:20]} {[%emt 00:00:25]} Nb2+ {[%clk
00:02:10]} {[%emt 00:00:12]} 1/2-1/2